[Event "Titled Tuesday Blitz March 08 Late 2022"]
[White "Nikologorsky, Matfei"]
[Black "Chiu, Isaac"]
[WhiteFideId "24102474"]
[BlackFideId "30900654"]
[WhiteElo "2313"]
[BlackElo "2635"]
[Result "1-0"]
[Round "04"]
[TimeControl "180+1"]
[Date "2022.03.09"]
[WhiteClock "0:00:42"]
[BlackClock "0:00:07"]

1. e4 {[%clk 0:03:00]}  c6 {[%clk 0:02:49]} 2. d4 {[%clk 0:03:00]}  d5 {[%clk 0:02:49]} 3. Nc3 {[%clk 0:02:59]}  dxe4 {[%clk 0:02:49]} 4. Nxe4 {[%clk 0:03:00]}  Nf6 {[%clk 0:02:50]} 5. Nxf6+ {[%clk 0:03:00]}  exf6 {[%clk 0:02:51]} 6. c3 {[%clk 0:03:01]}  Bd6 {[%clk 0:02:48]} 7. Bd3 {[%clk 0:02:59]}  O-O {[%clk 0:02:47]} 8. Ne2 {[%clk 0:02:59]}  Re8 {[%clk 0:02:41]} 9. O-O {[%clk 0:02:59]}  Nd7 {[%clk 0:02:32]} 10. Bf4 {[%clk 0:02:58]}  Nf8 {[%clk 0:02:29]} 11. Bxd6 {[%clk 0:02:58]}  Qxd6 {[%clk 0:02:30]} 12. Ng3 {[%clk 0:02:57]}  g6 {[%clk 0:02:27]} 13. Qd2 {[%clk 0:02:51]}  f5 {[%clk 0:02:24]} 14. Qh6 {[%clk 0:02:33]}  Ne6 {[%clk 0:01:41]} 15. Rfe1 {[%clk 0:02:12]}  Bd7 {[%clk 0:01:35]} 16. Nxf5 {[%clk 0:01:43]}  gxf5 {[%clk 0:01:26]} 17. Bxf5 {[%clk 0:01:42]}  Qf4 {[%clk 0:00:36]} 18. Bxh7+ {[%clk 0:01:31]}  Kh8 {[%clk 0:00:33]} 19. Rxe6 {[%clk 0:01:31]}  Qxh6 {[%clk 0:00:25]} 20. Rxh6 {[%clk 0:01:30]}  Kg7 {[%clk 0:00:26]} 21. Rh4 {[%clk 0:01:30]}  Rh8 {[%clk 0:00:24]} 22. Re1 {[%clk 0:01:15]}  Rxh7 {[%clk 0:00:21]} 23. Rhe4 {[%clk 0:01:16]}  Rh6 {[%clk 0:00:19]} 24. Re7 {[%clk 0:01:14]}  Re6 {[%clk 0:00:18]} 25. R1xe6 {[%clk 0:01:14]}  Bxe6 {[%clk 0:00:19]} 26. Rxb7 {[%clk 0:01:14]}  Bxa2 {[%clk 0:00:20]} 27. f4 {[%clk 0:01:14]}  Bd5 {[%clk 0:00:19]} 28. Kf2 {[%clk 0:01:12]}  a5 {[%clk 0:00:19]} 29. g4 {[%clk 0:01:07]}  a4 {[%clk 0:00:19]} 30. Rb4 {[%clk 0:01:05]}  Bb3 {[%clk 0:00:19]} 31. h4 {[%clk 0:01:01]}  Kf6 {[%clk 0:00:16]} 32. h5 {[%clk 0:01:00]}  Rg8 {[%clk 0:00:15]} 33. Kg3 {[%clk 0:00:58]}  Be6 {[%clk 0:00:15]} 34. g5+ {[%clk 0:00:58]}  Kf5 {[%clk 0:00:15]} 35. Rxa4 {[%clk 0:00:54]}  Rb8 {[%clk 0:00:12]} 36. Ra5+ {[%clk 0:00:54]}  Ke4 {[%clk 0:00:12]} 37. Re5+ {[%clk 0:00:53]}  Kd3 {[%clk 0:00:11]} 38. f5 {[%clk 0:00:53]}  Bc4 {[%clk 0:00:11]} 39. h6 {[%clk 0:00:50]}  Rxb2 {[%clk 0:00:09]} 40. Re8 {[%clk 0:00:46]}  Rb1 {[%clk 0:00:08]} 41. h7 {[%clk 0:00:43]}  Rh1 {[%clk 0:00:07]} 42. g6 {[%clk 0:00:44]}  fxg6 {[%clk 0:00:07]} 43. fxg6 {[%clk 0:00:45]}  Rg1+ {[%clk 0:00:06]} 44. Kf2 {[%clk 0:00:44]}  Rxg6 {[%clk 0:00:07]} 45. h8=Q {[%clk 0:00:43]}  Kxc3 {[%clk 0:00:07]} 46. d5+ {[%clk 0:00:43]}  Kd3 {[%clk 0:00:07]} 47. Re3+ {[%clk 0:00:41]}  Kc2 {[%clk 0:00:06]} 48. Qc3+ {[%clk 0:00:42]}  Kb1 {[%clk 0:00:06]} 49. Re1+ {[%clk 0:00:42]}  Ka2 {[%clk 0:00:07]} 50. Ra1# {[%clk 0:00:42]} 1-0


[Site "https://www.chess.com"]

[Event "Titled Tuesday Blitz March 08 Late 2022"]
[White "Petersson, Kjell"]
[Black "Clawitter, Craig"]
[WhiteFideId "1705148"]
[BlackFideId "2023105"]
[WhiteElo "2009"]
[BlackElo "2270"]
[Result "1-0"]
[Round "04"]
[TimeControl "180+1"]
[Date "2022.03.09"]
[WhiteClock "0:00:20"]
[BlackClock "0:00:01"]

1. d4 {[%clk 0:03:00]}  e6 {[%clk 0:02:58]} 2. Bf4 {[%clk 0:03:01]}  Nf6 {[%clk 0:02:56]} 3. e3 {[%clk 0:03:00]}  b6 {[%clk 0:02:56]} 4. Nd2 {[%clk 0:02:59]}  Bb7 {[%clk 0:02:56]} 5. Ngf3 {[%clk 0:02:58]}  Be7 {[%clk 0:02:56]} 6. Bd3 {[%clk 0:02:56]}  Nh5 {[%clk 0:02:51]} 7. Bg3 {[%clk 0:02:55]}  d6 {[%clk 0:02:46]} 8. c3 {[%clk 0:02:47]}  Nd7 {[%clk 0:02:42]} 9. Qc2 {[%clk 0:02:45]}  g6 {[%clk 0:02:38]} 10. e4 {[%clk 0:02:41]}  c5 {[%clk 0:02:29]} 11. e5 {[%clk 0:02:20]}  d5 {[%clk 0:02:17]} 12. O-O {[%clk 0:02:05]}  Rc8 {[%clk 0:02:10]} 13. Qa4 {[%clk 0:02:01]}  Nxg3 {[%clk 0:01:42]} 14. fxg3 {[%clk 0:02:00]}  Qc7 {[%clk 0:01:32]} 15. h3 {[%clk 0:01:34]}  O-O {[%clk 0:01:23]} 16. Rf2 {[%clk 0:01:27]}  f6 {[%clk 0:01:03]} 17. Re1 {[%clk 0:01:23]}  fxe5 {[%clk 0:00:57]} 18. dxe5 {[%clk 0:01:09]}  c4 {[%clk 0:00:37]} 19. Bb1 {[%clk 0:01:08]}  Bc5 {[%clk 0:00:36]} 20. Nd4 {[%clk 0:01:05]}  Rxf2 {[%clk 0:00:33]} 21. Kxf2 {[%clk 0:01:04]}  Nxe5 {[%clk 0:00:24]} 22. Kg1 {[%clk 0:00:56]}  Rf8 {[%clk 0:00:12]} 23. Kh2 {[%clk 0:00:54]}  Bxd4 {[%clk 0:00:11]} 24. cxd4 {[%clk 0:00:53]}  Nd3 {[%clk 0:00:11]} 25. Bxd3 {[%clk 0:00:52]}  cxd3 {[%clk 0:00:12]} 26. Rxe6 {[%clk 0:00:48]}  Qc2 {[%clk 0:00:12]} 27. Qb4 {[%clk 0:00:42]}  Ba6 {[%clk 0:00:08]} 28. Nf3 {[%clk 0:00:36]}  Rxf3 {[%clk 0:00:05]} 29. Re8+ {[%clk 0:00:35]}  Kg7 {[%clk 0:00:06]} 30. Qe7+ {[%clk 0:00:33]}  Rf7 {[%clk 0:00:06]} 31. Qe5+ {[%clk 0:00:32]}  Kh6 {[%clk 0:00:06]} 32. h4 {[%clk 0:00:26]}  Qc1 {[%clk 0:00:03]} 33. Re7 {[%clk 0:00:20]}  Rxe7 {[%clk 0:00:02]} 34. Qxe7 {[%clk 0:00:21]}  Qd2 {[%clk 0:00:01]} 35. Qf8+ {[%clk 0:00:20]}  Kh5 {[%clk 0:00:01]} 36. Qe7 {[%clk 0:00:20]} 1-0


[Site "https://www.chess.com"]

[Event "Titled Tuesday Blitz March 08 Late 2022"]
[White "Pichot, Alan"]
[Black "Zhurbinsky, David"]
[WhiteFideId "110973"]
[BlackFideId "2072904"]
[WhiteElo "2579"]
[BlackElo "2550"]
[Result "1-0"]
[Round "04"]
[TimeControl "180+1"]
[Date "2022.03.08"]
[WhiteClock "0:00:04"]
[BlackClock "0:00:09"]

1. d4 {[%clk 0:03:00]}  Nf6 {[%clk 0:02:59]} 2. Nf3 {[%clk 0:03:00]}  e6 {[%clk 0:02:59]} 3. c4 {[%clk 0:03:00]}  Bb4+ {[%clk 0:03:00]} 4. Bd2 {[%clk 0:02:59]}  Qe7 {[%clk 0:03:01]} 5. g3 {[%clk 0:02:52]}  d5 {[%clk 0:03:00]} 6. Bg2 {[%clk 0:02:49]}  O-O {[%clk 0:02:59]} 7. Qc2 {[%clk 0:02:44]}  Bxd2+ {[%clk 0:02:52]} 8. Nbxd2 {[%clk 0:02:45]}  dxc4 {[%clk 0:02:51]} 9. Nxc4 {[%clk 0:02:40]}  c5 {[%clk 0:02:51]} 10. O-O {[%clk 0:02:36]}  Nc6 {[%clk 0:02:51]} 11. dxc5 {[%clk 0:02:27]}  Qxc5 {[%clk 0:02:52]} 12. Rac1 {[%clk 0:02:27]}  Bd7 {[%clk 0:02:50]} 13. a3 {[%clk 0:02:23]}  Rac8 {[%clk 0:02:46]} 14. b4 {[%clk 0:02:20]}  Qe7 {[%clk 0:02:45]} 15. Qb2 {[%clk 0:02:15]}  Rfd8 {[%clk 0:02:39]} 16. b5 {[%clk 0:01:53]}  Nb8 {[%clk 0:02:31]} 17. a4 {[%clk 0:01:51]}  b6 {[%clk 0:02:28]} 18. Nfe5 {[%clk 0:01:35]}  Be8 {[%clk 0:02:23]} 19. Rfd1 {[%clk 0:01:34]}  Nd5 {[%clk 0:02:13]} 20. Rd2 {[%clk 0:01:24]}  f6 {[%clk 0:02:02]} 21. Nd3 {[%clk 0:01:20]}  Bf7 {[%clk 0:01:56]} 22. Rdc2 {[%clk 0:01:19]}  Nd7 {[%clk 0:01:44]} 23. Nd2 {[%clk 0:01:08]}  Nc5 {[%clk 0:01:30]} 24. Nxc5 {[%clk 0:01:01]}  bxc5 {[%clk 0:01:31]} 25. Nb3 {[%clk 0:00:45]}  Nb6 {[%clk 0:01:16]} 26. a5 {[%clk 0:00:37]}  Nd7 {[%clk 0:01:07]} 27. Bb7 {[%clk 0:00:33]}  Rc7 {[%clk 0:01:05]} 28. Bc6 {[%clk 0:00:32]}  Ne5 {[%clk 0:01:00]} 29. Nxc5 {[%clk 0:00:24]}  Nxc6 {[%clk 0:00:54]} 30. Na6 {[%clk 0:00:24]}  Rb7 {[%clk 0:00:38]} 31. Rxc6 {[%clk 0:00:23]}  Be8 {[%clk 0:00:34]} 32. Rc7 {[%clk 0:00:14]}  Rxc7 {[%clk 0:00:31]} 33. Nxc7 {[%clk 0:00:15]}  Bg6 {[%clk 0:00:22]} 34. b6 {[%clk 0:00:13]}  Rb8 {[%clk 0:00:18]} 35. Qd4 {[%clk 0:00:07]}  axb6 {[%clk 0:00:18]} 36. axb6 {[%clk 0:00:08]}  Kf7 {[%clk 0:00:17]} 37. f3 {[%clk 0:00:05]}  e5 {[%clk 0:00:14]} 38. Qc4+ {[%clk 0:00:05]}  Kf8 {[%clk 0:00:12]} 39. Qc6 {[%clk 0:00:04]}  Be8 {[%clk 0:00:11]} 40. Nxe8 {[%clk 0:00:02]}  Qxe8 {[%clk 0:00:11]} 41. Qc7 {[%clk 0:00:02]}  Qd8 {[%clk 0:00:07]} 42. Qxd8+ {[%clk 0:00:02]}  Rxd8 {[%clk 0:00:08]} 43. b7 {[%clk 0:00:02]}  Ke7 {[%clk 0:00:08]} 44. Rc8 {[%clk 0:00:03]}  Rd1+ {[%clk 0:00:09]} 45. Kf2 {[%clk 0:00:02]}  Rb1 {[%clk 0:00:06]} 46. b8=Q {[%clk 0:00:03]}  Rxb8 {[%clk 0:00:07]} 47. Rxb8 {[%clk 0:00:04]}  e4 {[%clk 0:00:07]} 48. Rb7+ {[%clk 0:00:04]}  Kf8 {[%clk 0:00:07]} 49. fxe4 {[%clk 0:00:05]}  h6 {[%clk 0:00:07]} 50. e5 {[%clk 0:00:05]}  Kg8 {[%clk 0:00:08]} 51. exf6 {[%clk 0:00:05]}  Kh7 {[%clk 0:00:08]} 52. e4 {[%clk 0:00:06]}  Kg6 {[%clk 0:00:08]} 53. fxg7 {[%clk 0:00:06]}  Kh5 {[%clk 0:00:09]} 54. Rb5+ {[%clk 0:00:05]}  Kg4 {[%clk 0:00:08]} 55. g8=Q+ {[%clk 0:00:05]}  Kh3 {[%clk 0:00:09]} 56. Rh5# {[%clk 0:00:04]} 1-0


[Site "https://www.chess.com"]

[Event "Titled Tuesday Blitz March 08 Late 2022"]
[White "Pinheiro, Iung Alicio de O."]
[Black "Martirosyan, Haik M."]
[WhiteFideId "2104350"]
[BlackFideId "13306553"]
[WhiteElo "2614"]
[BlackElo "2735"]
[Result "0-1"]
[Round "04"]
[TimeControl "180+1"]
[Date "2022.03.08"]
[WhiteClock "0:00:14"]
[BlackClock "0:00:05"]

1. c4 {[%clk 0:03:00]}  g6 {[%clk 0:03:00]} 2. g3 {[%clk 0:03:00]}  Bg7 {[%clk 0:03:01]} 3. Bg2 {[%clk 0:03:00]}  c5 {[%clk 0:03:02]} 4. Nc3 {[%clk 0:03:00]}  Nc6 {[%clk 0:03:03]} 5. a3 {[%clk 0:03:00]}  e6 {[%clk 0:02:56]} 6. b4 {[%clk 0:02:59]}  d6 {[%clk 0:02:54]} 7. Rb1 {[%clk 0:02:55]}  Nge7 {[%clk 0:02:54]} 8. Nh3 {[%clk 0:02:50]}  O-O {[%clk 0:02:53]} 9. Nf4 {[%clk 0:02:51]}  Rb8 {[%clk 0:02:52]} 10. O-O {[%clk 0:02:44]}  b6 {[%clk 0:02:52]} 11. e3 {[%clk 0:02:31]}  Bb7 {[%clk 0:02:51]} 12. Nb5 {[%clk 0:02:18]}  a6 {[%clk 0:02:44]} 13. Nc3 {[%clk 0:02:18]}  Bxc3 {[%clk 0:02:43]} 14. dxc3 {[%clk 0:02:17]}  Ne5 {[%clk 0:02:43]} 15. e4 {[%clk 0:02:09]}  Nxc4 {[%clk 0:02:29]} 16. Qe2 {[%clk 0:02:08]}  Ne5 {[%clk 0:02:26]} 17. Rd1 {[%clk 0:02:04]}  Qc7 {[%clk 0:02:26]} 18. h4 {[%clk 0:01:57]}  Rfd8 {[%clk 0:02:14]} 19. h5 {[%clk 0:01:54]}  cxb4 {[%clk 0:02:09]} 20. cxb4 {[%clk 0:01:47]}  Qc4 {[%clk 0:02:09]} 21. Qe1 {[%clk 0:01:43]}  d5 {[%clk 0:02:04]} 22. exd5 {[%clk 0:01:38]}  Ng4 {[%clk 0:00:41]} 23. Nxe6 {[%clk 0:01:13]}  Re8 {[%clk 0:00:34]} 24. Rd4 {[%clk 0:01:03]}  Qc2 {[%clk 0:00:32]} 25. Rb2 {[%clk 0:01:00]}  Qf5 {[%clk 0:00:19]} 26. Rf4 {[%clk 0:00:59]}  Qxh5 {[%clk 0:00:19]} 27. Re2 {[%clk 0:00:42]}  Nxd5 {[%clk 0:00:14]} 28. Bf3 {[%clk 0:00:20]}  Nxf4 {[%clk 0:00:10]} 29. Nxf4 {[%clk 0:00:21]}  Qh2+ {[%clk 0:00:07]} 30. Kf1 {[%clk 0:00:21]}  Rxe2 {[%clk 0:00:07]} 31. Qxe2 {[%clk 0:00:20]}  Bxf3 {[%clk 0:00:06]} 32. Qxf3 {[%clk 0:00:21]}  h5 {[%clk 0:00:05]} 33. Bb2 {[%clk 0:00:18]}  Re8 {[%clk 0:00:04]} 34. Nd5 {[%clk 0:00:17]}  Re6 {[%clk 0:00:03]} 35. Nf4 {[%clk 0:00:15]}  Re8 {[%clk 0:00:03]} 36. Nd5 {[%clk 0:00:14]}  Qh3+ {[%clk 0:00:04]} 37. Kg1 {[%clk 0:00:14]}  Re1# {[%clk 0:00:05]} 0-1


[Site "https://www.chess.com"]

[Event "Titled Tuesday Blitz March 08 Late 2022"]
[White "Pourramezanali, Amirreza"]
[Black "Derige Kane, Yan"]
[WhiteFideId "12511412"]
[BlackFideId "20665431"]
[WhiteElo "2800"]
[BlackElo "2439"]
[Result "0-1"]
[Round "04"]
[TimeControl "180+1"]
[Date "2022.03.09"]
[WhiteClock "0:00:52"]
[BlackClock "0:00:50"]

1. e4 {[%clk 0:02:57]}  c5 {[%clk 0:02:59]} 2. c3 {[%clk 0:02:57]}  Nf6 {[%clk 0:02:59]} 3. e5 {[%clk 0:02:57]}  Nd5 {[%clk 0:03:00]} 4. d4 {[%clk 0:02:56]}  cxd4 {[%clk 0:03:00]} 5. cxd4 {[%clk 0:02:57]}  Nc6 {[%clk 0:03:01]} 6. Nc3 {[%clk 0:02:57]}  Nxc3 {[%clk 0:03:01]} 7. bxc3 {[%clk 0:02:58]}  d6 {[%clk 0:03:01]} 8. Nf3 {[%clk 0:02:57]}  dxe5 {[%clk 0:03:02]} 9. d5 {[%clk 0:02:56]}  Na5 {[%clk 0:03:01]} 10. Nxe5 {[%clk 0:02:55]}  Bd7 {[%clk 0:02:56]} 11. Qf3 {[%clk 0:02:53]}  Qc7 {[%clk 0:02:26]} 12. Qxf7+ {[%clk 0:02:50]}  Kd8 {[%clk 0:02:26]} 13. Qf4 {[%clk 0:02:19]}  Qxc3+ {[%clk 0:02:09]} 14. Kd1 {[%clk 0:02:18]}  g5 {[%clk 0:01:17]} 15. Qd2 {[%clk 0:01:50]}  Ba4+ {[%clk 0:01:07]} 16. Ke1 {[%clk 0:01:48]}  Qxe5+ {[%clk 0:01:07]} 17. Be2 {[%clk 0:01:47]}  Nc4 {[%clk 0:01:03]} 18. Qb4 {[%clk 0:00:54]}  Qxa1 {[%clk 0:00:59]} 19. f3 {[%clk 0:00:54]}  Qxc1+ {[%clk 0:00:53]} 20. Kf2 {[%clk 0:00:53]}  Qe3+ {[%clk 0:00:54]} 21. Kg3 {[%clk 0:00:53]}  Qf4+ {[%clk 0:00:50]} 22. Kf2 {[%clk 0:00:53]}  Qd4+ {[%clk 0:00:50]} 23. Kg3 {[%clk 0:00:52]}  Qh4# {[%clk 0:00:50]} 0-1


[Site "https://www.chess.com"]

[Event "Titled Tuesday Blitz March 08 Late 2022"]
[White "Rangel, Daniel"]
[Black "Rastbod, Ali"]
[WhiteFideId "2124475"]
[BlackFideId "12567477"]
[WhiteElo "2416"]
[BlackElo "2613"]
[Result "1-0"]
[Round "04"]
[TimeControl "180+1"]
[Date "2022.03.09"]
[WhiteClock "0:00:28"]
[BlackClock "0:00:54"]

1. d4 {[%clk 0:03:00]}  Nf6 {[%clk 0:02:59]} 2. Nf3 {[%clk 0:02:59]}  e6 {[%clk 0:03:00]} 3. g3 {[%clk 0:02:45]}  b5 {[%clk 0:02:59]} 4. Bg2 {[%clk 0:02:46]}  Bb7 {[%clk 0:03:00]} 5. O-O {[%clk 0:02:39]}  c5 {[%clk 0:03:00]} 6. a4 {[%clk 0:02:37]}  b4 {[%clk 0:03:00]} 7. c3 {[%clk 0:02:37]}  a5 {[%clk 0:02:59]} 8. Bg5 {[%clk 0:02:34]}  h6 {[%clk 0:02:55]} 9. Bxf6 {[%clk 0:02:33]}  Qxf6 {[%clk 0:02:56]} 10. Nbd2 {[%clk 0:02:33]}  Nc6 {[%clk 0:02:47]} 11. Ne5 {[%clk 0:02:23]}  d5 {[%clk 0:02:45]} 12. Nxc6 {[%clk 0:02:17]}  Bxc6 {[%clk 0:02:46]} 13. e4 {[%clk 0:02:15]}  Be7 {[%clk 0:02:37]} 14. exd5 {[%clk 0:02:14]}  exd5 {[%clk 0:02:28]} 15. dxc5 {[%clk 0:02:00]}  bxc3 {[%clk 0:02:20]} 16. bxc3 {[%clk 0:01:55]}  Qxc3 {[%clk 0:02:21]} 17. Re1 {[%clk 0:01:51]}  Qxc5 {[%clk 0:02:15]} 18. Rc1 {[%clk 0:01:06]}  Qd6 {[%clk 0:02:13]} 19. Nc4 {[%clk 0:00:47]}  Qf6 {[%clk 0:01:37]} 20. Qe2 {[%clk 0:00:40]}  Bxa4 {[%clk 0:01:06]} 21. Nb6 {[%clk 0:00:35]}  Rd8 {[%clk 0:00:54]} 22. Nxa4 {[%clk 0:00:28]}  O-O {[%clk 0:00:54]} 23. Qxe7 {[%clk 0:00:28]} 1-0


[Site "https://www.chess.com"]

[Event "Titled Tuesday Blitz March 08 Late 2022"]
[White "Rasulov, Vugar"]
[Black "Salinas Herrera, Pablo"]
[WhiteFideId "13402390"]
[BlackFideId "3407128"]
[WhiteElo "2560"]
[BlackElo "2541"]
[Result "0-1"]
[Round "04"]
[TimeControl "180+1"]
[Date "2022.03.08"]
[WhiteClock "0:00:05"]
[BlackClock "0:00:06"]

1. d4 {[%clk 0:03:00]}  d5 {[%clk 0:03:00]} 2. c4 {[%clk 0:03:01]}  e6 {[%clk 0:03:00]} 3. Nc3 {[%clk 0:03:00]}  Nf6 {[%clk 0:03:00]} 4. cxd5 {[%clk 0:03:01]}  exd5 {[%clk 0:03:01]} 5. Bg5 {[%clk 0:03:01]}  c6 {[%clk 0:03:02]} 6. e3 {[%clk 0:03:01]}  h6 {[%clk 0:03:01]} 7. Bf4 {[%clk 0:02:59]}  Bd6 {[%clk 0:03:02]} 8. Bxd6 {[%clk 0:02:58]}  Qxd6 {[%clk 0:03:02]} 9. Bd3 {[%clk 0:02:59]}  O-O {[%clk 0:03:02]} 10. Nge2 {[%clk 0:02:58]}  Re8 {[%clk 0:03:03]} 11. O-O {[%clk 0:02:58]}  Nbd7 {[%clk 0:03:02]} 12. Ng3 {[%clk 0:02:58]}  Nf8 {[%clk 0:03:02]} 13. Qc2 {[%clk 0:02:56]}  g6 {[%clk 0:03:00]} 14. Rae1 {[%clk 0:02:56]}  h5 {[%clk 0:03:00]} 15. f3 {[%clk 0:02:55]}  h4 {[%clk 0:02:58]} 16. Nh1 {[%clk 0:02:55]}  Bd7 {[%clk 0:02:54]} 17. Qf2 {[%clk 0:02:53]}  h3 {[%clk 0:02:50]} 18. g4 {[%clk 0:02:54]}  c5 {[%clk 0:02:48]} 19. Ng3 {[%clk 0:02:49]}  cxd4 {[%clk 0:02:34]} 20. exd4 {[%clk 0:02:50]}  Ne6 {[%clk 0:02:35]} 21. Nce2 {[%clk 0:02:35]}  Rac8 {[%clk 0:02:25]} 22. Kh1 {[%clk 0:02:34]}  a6 {[%clk 0:02:22]} 23. Rg1 {[%clk 0:02:34]}  Qb4 {[%clk 0:02:11]} 24. b3 {[%clk 0:02:18]}  Qd2 {[%clk 0:02:06]} 25. Bb1 {[%clk 0:02:13]}  Nf4 {[%clk 0:01:54]} 26. Rgf1 {[%clk 0:02:01]}  Ng2 {[%clk 0:01:44]} 27. Rd1 {[%clk 0:01:59]}  Qb2 {[%clk 0:01:38]} 28. g5 {[%clk 0:01:34]}  Nh7 {[%clk 0:01:32]} 29. f4 {[%clk 0:01:34]}  Ne3 {[%clk 0:01:27]} 30. f5 {[%clk 0:01:33]}  Nxd1 {[%clk 0:01:22]} 31. Rxd1 {[%clk 0:01:34]}  Rc6 {[%clk 0:00:49]} 32. Rf1 {[%clk 0:01:31]}  Nxg5 {[%clk 0:00:37]} 33. fxg6 {[%clk 0:01:07]}  fxg6 {[%clk 0:00:38]} 34. Bd3 {[%clk 0:01:07]}  Bg4 {[%clk 0:00:28]} 35. Qf4 {[%clk 0:00:58]}  Bxe2 {[%clk 0:00:20]} 36. Nxe2 {[%clk 0:00:58]}  Rxe2 {[%clk 0:00:08]} 37. Kg1 {[%clk 0:00:25]}  Rg2+ {[%clk 0:00:08]} 38. Kh1 {[%clk 0:00:26]}  Qd2 {[%clk 0:00:04]} 39. Qf8+ {[%clk 0:00:22]}  Kh7 {[%clk 0:00:05]} 40. Qe7+ {[%clk 0:00:22]}  Kh6 {[%clk 0:00:05]} 41. Qf8+ {[%clk 0:00:22]}  Kh5 {[%clk 0:00:06]} 42. Qh8+ {[%clk 0:00:10]}  Kg4 {[%clk 0:00:06]} 43. Qb8 {[%clk 0:00:10]}  Rf6 {[%clk 0:00:05]} 44. Rxf6 {[%clk 0:00:05]}  Rg1+ {[%clk 0:00:05]} 45. Kxg1 {[%clk 0:00:05]}  Qg2# {[%clk 0:00:06]} 0-1


[Site "https://www.chess.com"]

[Event "Titled Tuesday Blitz March 08 Late 2022"]
[White "Romero Ruscalleda, Josep"]
[Black "Maranhao,Jose Renato Ruiz"]
[WhiteFideId "2231859"]
[BlackFideId "2135175"]
[WhiteElo "2306"]
[BlackElo "1970"]
[Result "1-0"]
[Round "04"]
[TimeControl "180+1"]
[Date "2022.03.09"]
[WhiteClock "0:01:13"]
[BlackClock "0:00:02"]

1. e4 {[%clk 0:02:59]}  c6 {[%clk 0:03:00]} 2. Nc3 {[%clk 0:02:58]}  d5 {[%clk 0:03:01]} 3. Nf3 {[%clk 0:02:58]}  Bg4 {[%clk 0:03:00]} 4. h3 {[%clk 0:02:57]}  Bxf3 {[%clk 0:02:59]} 5. Qxf3 {[%clk 0:02:58]}  e6 {[%clk 0:03:00]} 6. d4 {[%clk 0:02:57]}  dxe4 {[%clk 0:02:59]} 7. Qxe4 {[%clk 0:02:57]}  Nf6 {[%clk 0:02:58]} 8. Qd3 {[%clk 0:02:57]}  Be7 {[%clk 0:02:38]} 9. g3 {[%clk 0:02:57]}  O-O {[%clk 0:02:36]} 10. Bg2 {[%clk 0:02:58]}  Nbd7 {[%clk 0:02:29]} 11. O-O {[%clk 0:02:57]}  Nd5 {[%clk 0:02:25]} 12. Ne4 {[%clk 0:02:54]}  N7f6 {[%clk 0:02:23]} 13. Ng5 {[%clk 0:02:44]}  h6 {[%clk 0:02:18]} 14. Nf3 {[%clk 0:02:44]}  c5 {[%clk 0:02:09]} 15. a3 {[%clk 0:02:36]}  cxd4 {[%clk 0:01:56]} 16. Nxd4 {[%clk 0:02:35]}  Nb6 {[%clk 0:01:24]} 17. Re1 {[%clk 0:02:27]}  Bc5 {[%clk 0:01:15]} 18. Be3 {[%clk 0:02:24]}  e5 {[%clk 0:01:13]} 19. Nf5 {[%clk 0:02:19]}  Qxd3 {[%clk 0:01:12]} 20. cxd3 {[%clk 0:02:19]}  Bxe3 {[%clk 0:01:10]} 21. fxe3 {[%clk 0:02:16]}  Nbd5 {[%clk 0:00:36]} 22. Rac1 {[%clk 0:02:08]}  Rac8 {[%clk 0:00:29]} 23. Kf2 {[%clk 0:02:02]}  g6 {[%clk 0:00:19]} 24. Nd6 {[%clk 0:02:01]}  Rxc1 {[%clk 0:00:16]} 25. Rxc1 {[%clk 0:02:01]}  b6 {[%clk 0:00:16]} 26. e4 {[%clk 0:01:45]}  Rd8 {[%clk 0:00:13]} 27. Nb7 {[%clk 0:01:41]}  Rd7 {[%clk 0:00:13]} 28. Rc8+ {[%clk 0:01:33]}  Kg7 {[%clk 0:00:13]} 29. Nc5 {[%clk 0:01:17]}  Ne7 {[%clk 0:00:06]} 30. Nxd7 {[%clk 0:01:14]}  Nxc8 {[%clk 0:00:06]} 31. Nxe5 {[%clk 0:01:14]}  Nd6 {[%clk 0:00:02]} 32. Ke3 {[%clk 0:01:13]} 1-0


[Site "https://www.chess.com"]

[Event "Titled Tuesday Blitz March 08 Late 2022"]
[White "Rorrer, Grayson"]
[Black "Burke, Paul"]
[WhiteFideId "30944996"]
[BlackFideId "2605767"]
[WhiteElo "2122"]
[BlackElo "1889"]
[Result "1-0"]
[Round "04"]
[TimeControl "180+1"]
[Date "2022.03.09"]
[WhiteClock "0:01:09"]
[BlackClock "0:00:26"]

1. e4 {[%clk 0:02:55]}  e5 {[%clk 0:02:59]} 2. Nc3 {[%clk 0:02:55]}  Nc6 {[%clk 0:02:59]} 3. g3 {[%clk 0:02:49]}  g6 {[%clk 0:02:58]} 4. Bg2 {[%clk 0:02:48]}  Bg7 {[%clk 0:02:58]} 5. Nge2 {[%clk 0:02:49]}  Nge7 {[%clk 0:02:58]} 6. O-O {[%clk 0:02:47]}  h6 {[%clk 0:02:58]} 7. d3 {[%clk 0:02:47]}  O-O {[%clk 0:02:56]} 8. f4 {[%clk 0:02:47]}  f5 {[%clk 0:02:56]} 9. h3 {[%clk 0:02:44]}  d6 {[%clk 0:02:55]} 10. Kh2 {[%clk 0:02:43]}  Kh7 {[%clk 0:02:55]} 11. a4 {[%clk 0:02:40]}  Nd4 {[%clk 0:02:44]} 12. Nxd4 {[%clk 0:02:39]}  exd4 {[%clk 0:02:44]} 13. Ne2 {[%clk 0:02:40]}  c5 {[%clk 0:02:43]} 14. c3 {[%clk 0:02:37]}  dxc3 {[%clk 0:02:14]} 15. bxc3 {[%clk 0:02:37]}  d5 {[%clk 0:02:11]} 16. e5 {[%clk 0:02:36]}  Be6 {[%clk 0:02:07]} 17. Be3 {[%clk 0:02:29]}  b6 {[%clk 0:02:05]} 18. a5 {[%clk 0:02:28]}  Qd7 {[%clk 0:02:02]} 19. d4 {[%clk 0:02:26]}  c4 {[%clk 0:01:59]} 20. Bc1 {[%clk 0:02:23]}  Nc6 {[%clk 0:01:52]} 21. a6 {[%clk 0:02:23]}  b5 {[%clk 0:01:51]} 22. Ba3 {[%clk 0:02:20]}  Rfc8 {[%clk 0:01:47]} 23. Nc1 {[%clk 0:02:20]}  Bf8 {[%clk 0:01:46]} 24. Bxf8 {[%clk 0:02:18]}  Rxf8 {[%clk 0:01:45]} 25. Na2 {[%clk 0:02:18]}  Rab8 {[%clk 0:01:44]} 26. Qd2 {[%clk 0:02:15]}  Qe7 {[%clk 0:01:41]} 27. Rfb1 {[%clk 0:02:14]}  Na5 {[%clk 0:01:40]} 28. Nc1 {[%clk 0:02:09]}  Nc6 {[%clk 0:01:34]} 29. Bf3 {[%clk 0:02:08]}  b4 {[%clk 0:01:30]} 30. cxb4 {[%clk 0:01:41]}  Rxb4 {[%clk 0:01:29]} 31. Rxb4 {[%clk 0:01:40]}  Qxb4 {[%clk 0:01:28]} 32. Qxb4 {[%clk 0:01:31]}  Nxb4 {[%clk 0:01:27]} 33. Rb1 {[%clk 0:01:32]}  Nxa6 {[%clk 0:01:24]} 34. Ra1 {[%clk 0:01:32]}  Nb4 {[%clk 0:01:22]} 35. Rxa7+ {[%clk 0:01:33]}  Rf7 {[%clk 0:01:21]} 36. Ra4 {[%clk 0:01:33]}  Nc2 {[%clk 0:01:19]} 37. Ne2 {[%clk 0:01:32]}  Rb7 {[%clk 0:01:14]} 38. Ra6 {[%clk 0:01:17]}  Rb2 {[%clk 0:01:12]} 39. Kg1 {[%clk 0:01:12]}  Rb1+ {[%clk 0:01:09]} 40. Kf2 {[%clk 0:01:12]}  Rb2 {[%clk 0:01:09]} 41. Rxe6 {[%clk 0:01:10]}  Nxd4 {[%clk 0:01:06]} 42. Re7+ {[%clk 0:01:10]}  Kg8 {[%clk 0:01:04]} 43. Ke3 {[%clk 0:01:11]}  Nc2+ {[%clk 0:00:32]} 44. Kf2 {[%clk 0:01:09]}  d4 {[%clk 0:00:30]} 45. Bd5+ {[%clk 0:01:08]}  Kf8 {[%clk 0:00:29]} 46. Rf7+ {[%clk 0:01:08]}  Ke8 {[%clk 0:00:29]} 47. e6 {[%clk 0:01:08]}  d3 {[%clk 0:00:27]} 48. Bc6+ {[%clk 0:01:08]}  Kd8 {[%clk 0:00:26]} 49. e7+ {[%clk 0:01:09]}  Kc7 {[%clk 0:00:26]} 50. e8=Q+ {[%clk 0:01:09]} 1-0


[Site "https://www.chess.com"]